bitfinex/quotes_ETHUSD_20260219
["timestamp","ask_amount","ask_price","bid_price","bid_amount"]
[1771513238651,0.80951438,1938.9,1937.9,0.6]
[1771513238954,0.80951438,1938.9,1937.9,1.17367917]
[1771513239326,2.09890802,1938.9,1937.9,1.17367917]
[1771513239624,0.80841438,1938.8,1937.9,0.6]
[1771513240238,0.0011,1938.9,1937.9,1.17275995]
[1771513240438,0.0011,1938.9,1938.0,1.28998968]
[1771513240734,0.0011,1938.9,1938.0,1.86274963]
[1771513241144,0.0011,1938.9,1938.1,0.57183919]
[1771513242536,0.0011,1938.9,1938.2,1.86076669]
[1771513242737,0.0011,1938.9,1938.3,0.6]
[1771513244663,0.80951438,1938.9,1937.6,5.73000838]
[1771513244863,0.80951438,1938.9,1937.7,2.81918939]
[1771513245064,0.80841438,1938.8,1937.7,1.29018939]
[1771513245363,0.80841438,1938.5,1937.7,1.89018939]
[1771513245864,0.80841438,1938.8,1937.7,2.45825028]
[1771513246086,0.0011,1938.9,1937.8,0.56709119]
[1771513246271,0.80951438,1938.9,1937.8,0.56709119]
[1771513246450,0.80951438,1938.9,1937.7,1.89018939]
[1771513247467,0.0011,1938.9,1937.8,0.56611642]
[1771513249462,0.0011,1938.9,1938.0,0.56413986]
[1771513249663,0.0011,1938.8,1938.1,0.929]
[1771513249868,0.0011,1938.8,1938.2,0.601]
[1771513250258,0.0011,1938.8,1938.2,1.16414331]
[1771513250458,0.0011,1938.9,1938.2,1.16414331]
[1771513250766,0.0011,1939.1,1938.3,0.56314331]
[1771513251151,0.80841438,1939.5,1938.4,0.56216755]
[1771513251351,0.0011,1939.6,1938.6,0.56216755]
[1771513251566,0.0011,1939.6,1938.7,1.8905239]
[1771513251773,0.80951438,1939.6,1938.7,1.8905239]
[1771513252550,0.0011,1939.6,1938.9,0.56129212]
[1771513252883,0.0011,1939.9,1938.9,0.55917224]
[1771513253175,0.80841438,1940.2,1939.3,0.55917224]
[1771513253370,0.80951438,1940.3,1939.4,0.601]
[1771513253565,0.80951438,1940.3,1939.5,1.288992]
[1771513254154,0.0011,1940.3,1939.5,1.288992]
[1771513254553,0.0011,1940.3,1939.5,2.217992]
[1771513256079,0.80951438,1940.3,1939.5,1.288992]
[1771513256280,0.80841438,1940.1,1939.2,1.88919141]
[1771513257150,0.0011,1940.3,1939.2,2.44432243]
[1771513257377,0.0011,1940.3,1939.3,0.55513102]
[1771513257778,0.0011,1940.3,1939.4,1.28905847]
[1771513258091,0.80951438,1940.3,1939.4,1.28905847]
[1771513259386,0.0011,1940.6,1939.4,1.28905847]
[1771513259387,2.09777991,1940.6,1939.8,8.85216046]
[1771513259688,1.28839414,1940.4,1939.8,1.88876672]
[1771513259891,0.839226,1940.3,1939.8,1.28876672]
[1771513260059,0.839226,1940.3,1939.7,1.28882838]
[1771513260264,0.839226,1940.3,1939.5,0.6]
[1771513260892,2.12860175,1940.6,1939.5,1.1518885]
[1771513261104,0.839226,1940.5,1939.5,0.6]
[1771513261991,0.839226,1940.3,1939.6,1.28892555]
[1771513263280,0.840326,1940.6,1939.6,1.28892555]
[1771513263467,0.839226,1940.5,1939.6,1.28892555]
[1771513263667,0.839226,1940.3,1939.6,1.88892555]
[1771513264076,0.0011,1940.4,1939.6,1.88892555]
[1771513264364,0.839226,1940.3,1939.6,1.88892555]
[1771513264595,0.839226,1940.3,1939.6,1.88890852]
[1771513265197,0.0011,1940.4,1939.6,2.43646801]
[1771513265385,0.840326,1940.4,1939.6,1.88890852]
[1771513265699,0.0011,1940.4,1939.6,2.43646801]
[1771513266002,0.0011,1940.6,1939.9,1.28872622]
[1771513266574,0.0011,1940.6,1940.0,0.601]
[1771513266771,0.83976541,1941.1,1940.1,9.39945363]
[1771513267089,2.12770255,1941.1,1940.1,0.54729317]
[1771513267290,0.83976541,1941.1,1940.1,0.54729317]
[1771513268018,0.83976541,1941.1,1940.2,1.83369914]
[1771513268642,0.0011,1941.1,1940.4,8.85216046]
[1771513268787,0.0011,1941.1,1940.5,0.601]
[1771513268788,0.83976541,1941.1,1940.5,0.601]
[1771513269472,0.83866541,1941.0,1940.5,0.601]
[1771513269689,0.83866541,1941.0,1940.2,1.28852695]
[1771513269901,0.83866541,1941.0,1940.3,0.601]
[1771513270114,0.83866541,1941.0,1940.4,1.28839414]
[1771513270489,0.0011,1941.1,1940.4,1.28839414]
[1771513271075,0.0011,1941.4,1940.5,0.87280986]
[1771513271401,2.12611455,1941.9,1940.5,0.87280986]
[1771513271701,2.12610321,1941.9,1940.7,8.85216046]
[1771513271879,0.83866541,1941.8,1940.8,1.47380986]
[1771513272079,0.83866541,1941.8,1940.9,1.28806223]
[1771513272080,0.83866541,1941.6,1940.9,1.28806223]
[1771513272998,3.56898184,1941.9,1940.9,2.16087209]
[1771513273176,1.5251,1942.2,1940.9,2.16087209]
[1771513273177,2.12698354,1942.2,1941.2,0.87280986]
[1771513273375,0.83866541,1942.1,1941.3,0.601]
[1771513274103,0.0011,1942.2,1941.4,1.2877305]
[1771513274619,0.0011,1942.2,1941.5,0.87280986]
[1771513275098,0.0011,1942.3,1941.6,0.87280986]
[1771513275488,0.0011,1942.3,1941.7,0.601]
[1771513275685,0.0011,1942.5,1941.7,1.47380986]
[1771513275887,0.0011,1942.5,1941.8,0.87280986]
[1771513276076,4.85565366,1943.0,1941.9,2.16020879]
[1771513276307,4.85565366,1943.0,1941.9,1.28739893]
[1771513276308,0.83866541,1942.9,1941.9,1.28739893]
[1771513277096,0.83866541,1942.9,1941.9,2.16020879]
[1771513277502,0.83866541,1942.9,1941.9,1.28739893]
[1771513278111,0.83866541,1942.7,1941.8,5.14959575]
[1771513278830,5.14721021,1942.9,1941.8,5.14959575]
[1771513278831,0.83866541,1942.9,1941.8,6.02240561]
[1771513279209,2.12524686,1943.2,1941.9,0.87280986]
[1771513279422,0.83866541,1943.2,1942.1,0.87280986]
[1771513279620,0.83866541,1943.2,1942.2,1.47480986]
[1771513279808,2.12520619,1943.2,1942.2,1.47480986]
[1771513280008,0.83866541,1943.2,1942.2,1.47480986]
[1771513280213,2.54339577,1943.5,1942.4,1.28706754]
[1771513280214,1.28645391,1943.4,1942.4,1.28706754]
[1771513280427,4.66844972,1943.5,1942.4,1.28706754]
[1771513280637,4.66843095,1943.5,1942.4,2.1598774]
[1771513280934,0.83866541,1943.7,1942.5,0.87280986]
[1771513281126,0.83866541,1943.7,1942.6,1.47580986]
[1771513281330,3.38206118,1944.0,1942.7,0.87280986]
[1771513281634,0.83866541,1944.0,1943.0,8.85216046]
[1771513281840,2.12467938,1944.0,1943.1,0.604]
[1771513282007,0.83866541,1943.9,1943.1,0.604]
[1771513282208,0.83866541,1943.9,1943.2,1.28653766]
[1771513282403,0.83866541,1943.9,1942.8,5.147088]
[1771513282404,0.83866541,1943.8,1942.8,5.147088]
[1771513282605,2.54339577,1944.4,1942.9,1.47580986]
[1771513282606,0.83866541,1944.1,1942.9,1.47580986]
[1771513282807,0.83866541,1944.0,1942.9,0.603]
[1771513283234,1.28583733,1944.3,1943.0,0.87280986]
[1771513283433,0.83866541,1944.4,1943.3,0.87280986]
[1771513283633,0.83866541,1944.4,1943.4,0.604]
[1771513283634,0.83866541,1944.3,1943.4,0.604]
[1771513283858,0.83866541,1944.1,1942.9,0.87280986]
[1771513284048,0.83866541,1944.1,1943.0,1.532]
[1771513284463,2.12467364,1944.0,1943.1,1.28660388]
[1771513284664,0.83866541,1943.9,1943.1,0.604]
[1771513284866,0.83866541,1943.8,1943.1,0.604]
[1771513285164,0.83866541,1943.8,1943.0,0.604]
[1771513285365,5.14403292,1944.1,1943.0,0.604]
[1771513285366,2.12465336,1944.1,1943.0,1.47680986]
[1771513285662,0.83866541,1944.1,1943.0,1.47680986]
[1771513285865,2.1245047,1944.3,1943.1,9.72497032]
[1771513286063,0.83866541,1944.2,1943.0,0.604]
[1771513286568,1.28586908,1944.3,1943.2,2.15934752]
[1771513286742,2.1243949,1944.5,1943.3,0.87280986]
[1771513286934,0.83866541,1944.4,1943.4,0.605]
[1771513287135,0.83866541,1944.2,1943.4,0.605]
[1771513287348,3.149034,1944.4,1943.4,1.47780986]
[1771513287550,2.12429017,1944.6,1943.5,0.87280986]
[1771513287753,0.83866541,1945.5,1944.2,8.85216046]
[1771513288068,1.28500747,1945.6,1944.3,1.533]
[1771513288268,3.77215341,1945.6,1944.4,0.87280986]
[1771513288482,0.83866541,1945.4,1944.4,1.28569414]
[1771513288773,0.83866541,1945.4,1944.0,0.87280986]
[1771513288774,0.83866541,1945.3,1944.1,1.28594208]
[1771513288938,0.83866541,1945.3,1944.2,0.607]
[1771513289138,1.43666541,1945.3,1944.2,0.607]
[1771513289764,0.83866541,1945.2,1944.2,0.607]
[1771513290167,1.43666541,1945.2,1944.2,0.607]
[1771513290468,1.28522615,1945.2,1944.3,0.87280986]
[1771513291168,0.0011,1944.6,1944.2,1.89281103]
[1771513291378,0.0011,1944.6,1943.9,0.607]
[1771513291581,0.0011,1944.6,1943.9,1.89307438]
[1771513291768,1.28522615,1945.2,1944.1,0.87280986]
[1771513292079,2.12389156,1945.2,1944.1,0.87280986]
[1771513292448,0.08192,1945.5,1944.3,0.87280986]
[1771513292680,0.599,1945.5,1944.5,0.87280986]
[1771513292982,0.83866541,1945.5,1944.4,0.608]
[1771513293499,0.83866541,1945.1,1944.1,2.15870277]
[1771513293844,0.83866541,1945.1,1944.0,1.89499486]
[1771513294084,0.83866541,1944.9,1944.0,1.89500375]
[1771513294381,0.83866541,1944.9,1944.0,1.28600375]
[1771513294599,1.28547922,1944.8,1943.9,5.14415436]
[1771513294806,1.28547922,1944.8,1943.8,1.48180986]
[1771513295091,1.28547922,1944.8,1943.9,1.28607438]
[1771513296554,1.28558064,1944.7,1943.8,2.76791419]
[1771513297067,2.13276684,1944.7,1943.6,5.14501087]
[1771513297251,2.13276684,1944.7,1943.5,2.15181124]
[1771513297252,0.8471862,1944.6,1943.5,2.15181124]
[1771513297451,0.8471862,1944.4,1943.5,1.28628754]
[1771513297669,0.8471862,1944.4,1943.3,5.14566259]
[1771513298071,0.8471862,1944.4,1943.3,1.28647146]
[1771513298274,0.8471862,1944.0,1943.2,0.609]
[1771513298587,1.28607438,1943.9,1943.2,0.609]
[1771513299104,1.28607438,1943.9,1943.2,1.89553386]
[1771513299270,0.8471862,1943.8,1942.9,0.609]
[1771513299458,0.8471862,1943.7,1942.9,1.89573309]
[1771513299786,0.8471862,1943.7,1942.9,0.609]
[1771513300190,0.8471862,1943.7,1942.7,1.28682725]
[1771513300490,1.28627289,1943.6,1942.6,1.28693503]
[1771513300788,2.13345909,1943.6,1942.6,1.28693503]
[1771513301499,2.13345909,1943.6,1942.6,2.15245873]
[1771513301796,0.8471862,1943.5,1942.5,1.535]
[1771513301982,0.8471862,1943.5,1942.5,2.82198821]
[1771513302178,0.8471862,1943.5,1942.5,1.28698821]
[1771513302572,1.28640526,1943.4,1942.5,1.28698821]
[1771513303092,1.28640526,1943.4,1942.4,5.75626628]
[1771513303093,0.8471862,1943.1,1942.3,0.001]
[1771513303275,0.599,1943.0,1942.3,1.28812287]
[1771513303470,0.8471862,1942.9,1942.3,0.001]
[1771513304677,1.28680255,1942.8,1942.3,0.001]
[1771513304994,1.28680255,1942.8,1942.0,1.89629854]
[1771513305983,1.88569707,1943.0,1942.0,2.76182224]
[1771513306285,0.8471862,1943.5,1942.1,0.8655237]
[1771513306488,2.73253142,1943.5,1942.2,0.8655237]
[1771513306667,2.73253142,1943.5,1942.4,0.8655237]
[1771513306866,1.88534522,1943.5,1942.4,0.8655237]
[1771513307085,1.28632306,1943.6,1942.5,1.4725237]
[1771513307278,1.88532306,1943.6,1942.6,0.8655237]
[1771513307518,3.148606,1943.5,1942.6,0.8655237]
[1771513308094,3.148606,1943.5,1942.5,0.607]
[1771513308095,1.88532306,1943.6,1942.5,0.607]
[1771513308299,0.8471862,1943.5,1942.5,0.607]
[1771513308798,5.14484901,1943.7,1942.6,2.15245873]
[1771513309003,1.28620671,1943.7,1942.6,2.15245873]
[1771513310188,2.13339291,1943.7,1942.6,2.15245873]
[1771513310505,0.8471862,1943.6,1942.5,0.607]
[1771513310803,1.88538238,1943.5,1942.5,0.8655237]
[1771513311202,1.88538238,1943.5,1942.5,1.4715237]
[1771513311203,1.28638238,1943.5,1942.5,1.4715237]
[1771513311698,2.13356858,1943.5,1942.5,1.4715237]
[1771513311999,0.8471862,1943.3,1942.5,0.606]
[1771513312203,0.8471862,1943.0,1942.1,1.2872632]
[1771513312704,4.953891,1942.7,1942.0,0.607]
[1771513312904,1.28693503,1942.6,1942.0,0.001]
[1771513313078,1.88593503,1942.6,1942.0,1.2883174]
[1771513313416,13.99818618,1943.3,1942.0,1.2883174]
[1771513313417,0.8471862,1943.7,1942.3,3.46609707]
[1771513313698,2.13345909,1943.6,1942.4,0.8655237]
[1771513314085,0.8471862,1943.6,1942.4,0.8655237]
[1771513314908,0.601,1943.5,1942.5,2.15252498]
[1771513315213,0.8471862,1943.4,1942.5,1.89500128]
[1771513315385,0.8471862,1943.4,1942.5,0.608]
[1771513315583,0.601,1943.3,1942.5,0.608]
[1771513316109,0.601,1943.2,1942.5,0.608]
[1771513316883,0.601,1943.2,1942.3,0.001]
[1771513316884,0.8471862,1943.1,1942.3,0.001]
[1771513317081,0.8471862,1943.0,1942.3,1.28813158]
[1771513317501,1.28658893,1943.2,1942.3,1.28813158]
[1771513317809,1.4481862,1943.1,1942.3,1.28813158]
[1771513318397,0.8471862,1943.4,1942.3,1.28813158]
[1771513318594,1.88747314,1943.3,1942.3,2.15365528]
[1771513318799,19.84223608,1943.1,1942.3,0.001]
[1771513319117,0.8471862,1943.0,1942.3,0.001]
[1771513319317,0.601,1942.9,1942.3,0.001]
[1771513319505,1.4481862,1942.9,1942.3,0.001]
[1771513320516,0.601,1942.8,1942.3,0.001]
[1771513321091,0.8471862,1942.9,1942.3,0.001]
[1771513321292,1.28657102,1943.2,1942.3,0.001]
[1771513321497,0.601,1943.1,1942.3,0.001]
[1771513321710,0.601,1943.0,1942.3,0.001]
[1771513322107,1.28657102,1943.2,1942.3,0.001]
[1771513322442,0.93899477,1943.1,1942.3,0.001]
[1771513322651,0.93899477,1943.0,1942.3,0.001]
[1771513323007,1.28673632,1942.9,1942.3,0.001]
[1771513323228,0.601,1942.8,1942.3,0.001]
[1771513323730,1.53999477,1942.8,1942.3,0.001]
[1771513323901,0.601,1942.7,1942.3,0.001]
[1771513326421,0.6,1943.0,1942.3,0.001]
[1771513326606,0.6,1943.2,1942.3,0.94757726]
[1771513327003,0.93899477,1943.4,1942.5,0.94657726]
[1771513327213,0.6,1943.4,1942.5,0.94657726]
[1771513327421,0.0011,1943.6,1942.5,0.94657726]
[1771513329036,0.0011,1943.6,1942.7,0.94657726]
[1771513329330,0.96750298,1943.6,1942.7,0.94657726]
[1771513330446,0.96750298,1943.6,1942.5,1.28694766]
[1771513330733,0.96640298,1943.4,1942.5,1.28694766]
[1771513330947,0.0011,1942.8,1942.5,1.28694766]
[1771513331107,0.0011,1942.8,1942.4,5.14907982]
[1771513331306,0.0011,1942.8,1942.4,0.001]
[1771513331509,0.599,1942.7,1942.4,0.001]
[1771513333144,1.28693503,1942.6,1942.4,0.001]
[1771513333435,0.96640298,1942.6,1942.4,0.001]
[1771513333812,0.96640298,1942.6,1942.3,0.001]
[1771513334041,1.89340298,1942.6,1942.1,0.001]
[1771513334238,0.96640298,1942.5,1942.1,0.001]
[1771513334613,0.96640298,1942.5,1942.0,0.001]
[1771513334614,0.96640298,1942.3,1941.4,1.28768362]
[1771513334822,0.96640298,1942.1,1941.1,2.23444043]
[1771513335039,0.96640298,1942.1,1941.2,5.15144984]
[1771513335335,0.96640298,1941.9,1941.1,1.2878763]
[1771513335809,2.25373562,1942.0,1941.1,1.2878763]
[1771513336011,0.6,1941.8,1941.1,1.2878763]
[1771513336945,0.96640298,1941.7,1941.0,1.28794648]
[1771513337157,0.96640298,1942.0,1940.7,0.94657726]
[1771513337314,1.56640298,1941.9,1940.7,0.94657726]
[1771513337516,1.56640298,1941.9,1940.5,5.15304544]
[1771513337517,0.96640298,1941.7,1940.5,5.15304544]
[1771513338958,8.003457,1941.2,1940.2,1.28847687]
[1771513339138,12.26520645,1941.8,1940.0,1.28865979]
[1771513339139,2.25439885,1941.0,1940.0,1.28865979]
[1771513339324,0.96640298,1940.9,1940.0,1.28865979]
[1771513339653,0.601,1940.8,1939.7,0.001]
[1771513339814,0.96640298,1940.5,1939.7,1.28984722]
[1771513340149,0.96640298,1940.5,1939.7,0.001]
[1771513340931,0.96640298,1940.3,1939.5,1.28998973]
[1771513341251,0.96640298,1940.0,1939.5,0.001]
[1771513342045,1.28859337,1940.1,1939.5,0.001]
[1771513342046,0.601,1939.9,1939.5,0.001]
[1771513342352,2.25490059,1940.3,1939.5,0.001]
[1771513342649,0.602,1940.0,1939.5,0.001]
[1771513342821,1.56740298,1940.0,1939.5,0.001]
[1771513343019,1.56740298,1940.0,1939.8,0.001]
[1771513343214,2.85611011,1940.0,1939.5,0.001]
[1771513343436,0.96640298,1940.0,1939.5,0.001]
[1771513343620,0.602,1940.0,1939.7,0.001]
[1771513344015,5.15353618,1940.5,1939.7,0.001]
[1771513344016,0.603,1940.2,1939.7,0.001]
[1771513345118,2.25477713,1940.5,1939.7,0.001]
[1771513345345,1.89044093,1940.4,1939.7,0.001]
[1771513345563,1.28823681,1940.7,1939.7,0.001]
[1771513345738,2.2543335,1941.1,1939.7,0.94757726]
[1771513345942,0.602,1941.0,1939.7,0.94757726]
[1771513346150,0.602,1941.2,1940.3,0.94657726]
[1771513346366,0.928,1941.7,1940.3,0.94657726]
[1771513346367,1.28753783,1941.7,1940.3,0.94657726]
[1771513346651,0.96640298,1941.4,1940.3,0.94657726]
[1771513347054,0.603,1941.6,1940.3,0.94657726]
[1771513347245,1.89030609,1942.1,1940.8,0.94657726]
[1771513347424,1.28730609,1942.1,1940.8,0.94657726]
[1771513347630,2.85665245,1942.2,1940.8,0.94657726]
[1771513348233,0.603,1942.1,1940.8,0.94657726]
[1771513349333,1.89027853,1942.1,1941.0,0.94657726]
[1771513349867,0.96640298,1942.0,1940.9,1.28806223]
[1771513350035,0.96640298,1941.8,1940.9,1.28806223]
[1771513350230,0.96640298,1941.8,1940.7,5.15257243]
[1771513350438,1.53,1941.7,1940.7,5.15257243]
[1771513351059,0.602,1941.6,1940.7,5.15257243]
[1771513351362,1.28766301,1941.6,1940.7,5.15257243]
[1771513351764,0.96640298,1942.1,1940.7,6.09914969]
[1771513351938,0.602,1941.8,1940.7,6.09914969]
[1771513352736,1.56840298,1941.8,1940.7,6.09914969]
[1771513354366,0.23507825,1943.5,1940.7,6.09914969]
[1771513354367,0.96640298,1942.4,1940.9,0.94657726]
[1771513354547,0.96640298,1942.3,1940.9,0.94657726]
[1771513355838,0.0011,1941.5,1940.9,0.94657726]
[1771513356440,0.0011,1941.6,1941.1,0.94657726]
[1771513356766,5.14878516,1942.7,1941.4,0.96641535]
[1771513356767,0.0011,1942.7,1941.4,0.96641535]
[1771513357005,0.0011,1942.7,1941.6,0.96641535]
[1771513358048,1.28797079,1942.7,1941.6,0.96641535]
[1771513358553,0.0011,1942.7,1941.7,2.25394689]
[1771513358745,0.0011,1942.7,1941.8,0.96641535]
[1771513359386,0.0011,1943.0,1942.3,2.74368732]
[1771513359555,0.0011,1943.0,1942.4,0.96641535]
[1771513359756,0.0011,1943.0,1942.3,3.35368732]
[1771513360102,0.92335061,1942.8,1941.7,2.25394689]
[1771513360450,1.28686879,1942.7,1941.7,2.25394689]
[1771513360672,0.0011,1943.0,1941.8,0.96641535]
[1771513360842,1.28777084,1943.0,1941.8,0.96641535]
[1771513361245,0.92335061,1942.9,1941.8,0.96641535]
[1771513362474,2.21011263,1942.9,1941.6,6.11654152]
[1771513362642,2.21011263,1942.9,1941.7,0.96641535]
[1771513363274,0.92335061,1942.8,1941.7,0.96641535]
[1771513363690,0.0011,1943.0,1941.7,0.96641535]
[1771513363885,1.28777165,1943.0,1941.9,0.96641535]
[1771513364368,2.21112226,1943.0,1941.9,0.96641535]
[1771513364679,2.21112226,1943.0,1941.7,0.96641535]
[1771513364680,0.92335061,1942.9,1941.7,0.96641535]
[1771513365186,1.28777165,1943.0,1941.7,0.96641535]
[1771513365389,1.88977165,1943.0,1941.7,0.96641535]
[1771513365752,1.88977217,1943.0,1941.7,0.96641535]
[1771513365980,2.81312278,1943.0,1941.7,0.96641535]
[1771513366569,2.81312278,1943.0,1941.9,1.28739893]
[1771513366775,2.81312278,1943.0,1941.9,2.25381428]
[1771513366976,0.0011,1943.0,1942.0,0.96641535]
[1771513367473,1.28778117,1943.0,1942.0,0.96641535]
[1771513368598,0.92445061,1943.0,1942.1,1.28726636]
[1771513368894,0.92445061,1942.9,1942.1,1.28726636]
[1771513369467,0.601,1942.8,1942.1,1.28726636]
[1771513369868,0.92445061,1942.9,1942.1,1.28726636]
[1771513370125,0.0011,1942.9,1942.1,1.28726636]
[1771513370401,0.0011,1942.9,1942.2,0.96641535]
[1771513370605,0.0011,1943.0,1942.4,0.96641535]
[1771513371090,0.0011,1943.2,1942.4,0.96641535]
[1771513371305,0.0011,1943.2,1942.3,1.28713381]
[1771513372506,0.0011,1943.2,1942.3,2.25354916]
[1771513375216,0.0011,1943.2,1942.5,0.96641535]
[1771513375621,0.0011,1943.6,1942.5,0.96641535]
[1771513375920,3.19156753,1943.9,1942.4,10.17073087]
[1771513375921,0.0011,1943.9,1942.9,0.96641535]
[1771513376085,0.0011,1943.9,1943.1,0.96641535]
[1771513377217,0.0011,1943.9,1943.2,1.28653766]
[1771513377714,0.92445061,1943.9,1943.2,1.28653766]
[1771513378231,0.92445061,1943.9,1943.1,1.28656403]
[1771513378390,0.92445061,1943.9,1943.0,1.89463428]
[1771513378808,0.92445061,1943.9,1942.6,1.534]
[1771513379013,0.92335061,1943.8,1942.7,1.28686879]
[1771513379496,1.28620671,1943.7,1942.7,1.28686879]
[1771513379899,2.20955732,1943.7,1942.7,1.28686879]
[1771513380423,0.92335061,1943.6,1942.7,1.28686879]
[1771513380712,1.28620671,1943.7,1942.7,1.28686879]
[1771513380914,0.87988655,1943.6,1942.4,0.96641535]
[1771513381128,0.87988655,1943.6,1942.4,5.14812237]
[1771513381424,2.16622562,1943.5,1942.2,6.05105685]
[1771513382216,2.16622562,1943.5,1942.3,0.90169889]
[1771513382419,2.76322562,1943.5,1942.3,0.90169889]
[1771513382635,0.87988655,1943.4,1942.2,5.14935796]
[1771513383323,0.598,1943.3,1942.2,5.14935796]
[1771513383523,0.87988655,1943.4,1942.3,0.90169889]
[1771513383695,2.16633039,1943.4,1942.3,0.90169889]
[1771513384199,0.87988655,1943.4,1942.3,0.90169889]
[1771513384520,2.76517476,1943.8,1942.4,0.90169889]
[1771513384720,0.87988655,1943.7,1942.6,0.90169889]
[1771513385020,1.47888655,1943.7,1942.6,0.90169889]
[1771513385520,1.28627289,1943.6,1942.7,1.28686879]
[1771513385822,1.47888655,1943.7,1942.7,2.18856768]
[1771513386015,0.0011,1943.8,1942.8,0.90169889]
[1771513386193,1.28725409,1943.8,1942.8,0.90169889]
[1771513386390,0.0011,1943.8,1942.8,0.90169889]
[1771513386707,1.28724371,1943.8,1942.8,0.90169889]
[1771513387020,0.0011,1943.8,1942.8,0.90169889]
[1771513387203,1.28724763,1943.8,1942.8,0.90169889]
[1771513387607,0.0011,1943.8,1942.9,1.28673632]
[1771513388212,0.5991,1943.8,1942.9,1.89773632]
[1771513389112,0.0011,1943.8,1942.9,1.89773632]
[1771513389436,0.0011,1943.9,1943.1,0.95119428]
[1771513389622,0.08192,1944.6,1943.5,0.95119428]
[1771513389623,0.93343734,1944.6,1943.5,0.95119428]
[1771513389802,2.2190503,1944.6,1943.6,2.84746717]
[1771513390005,0.93343734,1944.5,1943.6,1.89627289]
[1771513391936,2.81808765,1944.7,1943.6,2.84746717]
[1771513392136,0.93343734,1944.6,1943.6,2.84746717]
[1771513392650,0.93343734,1944.6,1943.6,1.89627289]
[1771513393421,11.483782,1944.5,1943.6,1.28627289]
[1771513393735,0.93343734,1944.0,1943.3,1.28641751]
[1771513393910,0.93343734,1943.9,1943.3,1.28641751]
[1771513395633,0.93343734,1943.9,1943.1,5.14629783]
[1771513395932,0.93343734,1943.9,1942.8,1.28680255]
[1771513395933,1.28614054,1943.8,1942.8,1.28680255]
[1771513396137,0.93343734,1943.6,1942.7,1.28781621]
[1771513396532,0.597,1943.7,1942.7,2.23901049]
[1771513396841,1.53043734,1943.7,1942.7,2.85001049]
[1771513397547,0.93343734,1943.7,1942.7,2.85001049]
[1771513397711,0.597,1943.6,1942.7,2.85001049]
[1771513398038,0.93343734,1943.7,1942.7,2.85001049]
[1771513398039,1.53043734,1943.7,1942.7,2.85001049]
[1771513398543,0.597,1943.9,1942.8,0.95119428]
[1771513398845,0.93343734,1944.3,1943.2,0.95119428]
[1771513399149,0.5981,1944.5,1943.4,0.95119428]
[1771513399323,0.0011,1944.5,1943.4,0.95119428]
[1771513399529,0.0011,1944.5,1943.6,0.95119428]
[1771513399723,0.0011,1944.5,1943.7,0.612]
[1771513400153,0.0011,1944.5,1943.8,1.28614054]
[1771513403848,0.0011,1944.5,1943.8,1.24847954]
[1771513404257,0.0011,1944.5,1943.7,5.14456219]
[1771513404729,0.0011,1944.7,1943.9,0.95119428]
[1771513406419,0.0011,1944.7,1944.0,1.28600823]
[1771513406622,0.595,1945.2,1944.0,1.28600823]
[1771513406623,0.93343734,1945.4,1944.2,0.95119428]
[1771513406823,0.93343734,1945.8,1944.5,0.95119428]
[1771513407697,2.60364213,1946.0,1944.8,0.95119428]
[1771513407827,2.21799746,1946.2,1945.1,9.77224905]
[1771513408021,2.21799746,1946.2,1945.2,0.612]
[1771513408219,0.93343734,1946.1,1945.2,0.612]
[1771513408442,0.93343734,1946.1,1944.9,0.927]
[1771513408443,0.93343734,1945.8,1945.0,1.28534704]
[1771513409620,0.93343734,1945.8,1944.9,1.28536295]
[1771513409826,5.14011022,1946.1,1944.9,2.23655723]
[1771513409827,0.0011,1946.1,1944.9,2.23655723]
[1771513410025,0.595,1946.0,1944.9,2.23655723]
[1771513410220,1.28574722,1946.1,1944.9,2.23655723]
[1771513410452,0.0011,1946.1,1945.1,1.28528096]
[1771513410757,0.0011,1946.1,1945.2,1.56419428]
[1771513410957,0.0011,1946.4,1945.6,0.95119428]
[1771513411141,1.28554081,1946.4,1945.7,0.613]
[1771513411341,0.93343734,1947.1,1945.8,0.95119428]
[1771513412162,0.93343734,1946.9,1945.4,0.95119428]
[1771513412324,0.93343734,1946.9,1945.5,1.539]
[1771513412527,0.93343734,1946.8,1945.6,2.23614493]
[1771513412841,2.21733369,1947.2,1946.0,0.95119428]
[1771513413046,0.93343734,1947.1,1946.1,0.613]
[1771513413242,0.93343734,1947.1,1946.0,0.613]
[1771513413757,0.93343734,1947.1,1945.8,0.613]
[1771513414539,0.93343734,1946.9,1945.8,0.613]
[1771513414734,0.93343734,1946.8,1945.7,1.28485578]
[1771513414956,0.93343734,1946.8,1945.7,2.23605006]
[1771513415282,0.93343734,1946.7,1945.7,1.28485578]
[1771513415467,0.93343734,1947.1,1945.9,0.95119428]
[1771513415667,2.21718351,1947.5,1946.2,9.77224905]
[1771513415870,2.21718351,1947.5,1946.2,0.95119428]
[1771513416069,0.93343734,1947.4,1946.2,0.95119428]
[1771513416282,0.93343734,1947.4,1946.1,2.59732586]
[1771513416573,0.90791218,1947.3,1946.2,1.28455451]
[1771513416875,1.87977732,1947.4,1946.3,0.91977993]
[1771513417174,2.78768211,1947.4,1946.3,0.91977993]
[1771513417578,0.90791218,1947.4,1946.3,0.91977993]
[1771513417986,1.28368168,1947.6,1946.3,0.91977993]
[1771513418208,0.90791218,1947.8,1946.2,1.28455451]
[1771513418209,0.88812983,1947.9,1946.8,9.7408347]
[1771513418474,0.88812983,1947.9,1947.0,0.91977993]
[1771513418676,0.88812983,1947.9,1947.2,0.91977993]
[1771513418872,0.1436915,1948.6,1947.5,8.82105477]
[1771513419045,0.1436915,1948.6,1947.6,0.614]
[1771513419247,1.42668572,1948.6,1947.7,0.91977993]
[1771513419450,1.42668572,1948.6,1947.3,0.91977993]
[1771513419451,0.90791218,1948.5,1947.3,0.91977993]
[1771513419649,0.90791218,1948.5,1947.3,2.45977993]
[1771513419873,0.90791218,1948.5,1947.3,0.91977993]
[1771513420277,0.90791218,1948.3,1947.1,1.28396076]
[1771513420476,0.596,1948.5,1947.2,0.91977993]
[1771513420665,2.33458468,1948.6,1947.4,0.91977993]
[1771513420977,1.42667126,1948.6,1947.6,0.91977993]
[1771513421153,1.42667942,1948.6,1947.6,0.91977993]
[1771513421549,0.90791218,1948.5,1947.5,0.614]
[1771513421755,0.90791218,1948.5,1947.2,1.28385651]
[1771513422055,0.90791218,1948.3,1947.2,1.28385651]
[1771513422274,1.50491218,1948.3,1947.2,1.28385651]
[1771513422483,2.33458612,1948.6,1947.3,0.91977993]